bitfinex/quotes_BTCUSD_20250226
["timestamp","ask_amount","ask_price","bid_price","bid_amount"]
[1740551236473,0.16869,88920.0,88919.0,0.0801]
[1740551236675,0.16869,88920.0,88919.0,0.0841]
[1740551237078,0.16869,88920.0,88919.0,0.0801]
[1740551237387,0.03566167,88925.0,88919.0,0.0831]
[1740551237589,0.16869,88920.0,88919.0,0.0831]
[1740551238122,0.224894,88931.0,88919.0,0.0761]
[1740551238334,0.168685,88923.0,88919.0,0.0811]
[1740551238526,0.168685,88923.0,88919.0,0.0841]
[1740551238740,0.000424,88920.0,88919.0,0.0811]
[1740551239236,0.169114,88920.0,88919.0,0.0861]
[1740551239458,0.000424,88920.0,88919.0,0.0861]
[1740551239604,0.000424,88920.0,88919.0,0.0851]
[1740551239800,0.000424,88920.0,88919.0,0.0861]
[1740551240012,0.000424,88920.0,88919.0,0.0771]
[1740551240233,0.000424,88920.0,88919.0,0.0821]
[1740551240435,0.000424,88920.0,88919.0,0.0811]
[1740551240710,0.169114,88920.0,88919.0,0.0861]
[1740551241988,0.17852251,88920.0,88919.0,0.01]
[1740551242474,0.17852251,88920.0,88919.0,0.005]
[1740551242870,0.17852251,88920.0,88919.0,0.008]
[1740551243093,0.17852251,88920.0,88919.0,0.005]
[1740551243294,0.168706,88912.0,88911.0,0.4027]
[1740551244395,0.000424,88920.0,88911.0,0.4027]
[1740551244626,0.168706,88912.0,88911.0,0.4027]
[1740551245072,0.168706,88912.0,88911.0,0.0776]
[1740551245596,0.168706,88912.0,88911.0,0.0826]
[1740551246483,0.168706,88912.0,88911.0,0.0876]
[1740551246845,0.224938,88914.0,88911.0,0.0876]
[1740551247049,0.000424,88920.0,88912.0,0.0475]
[1740551247247,0.000424,88920.0,88913.0,0.0826]
[1740551247490,0.168699,88916.0,88913.0,0.0826]
[1740551247647,0.168701,88915.0,88913.0,0.0826]
[1740551248055,0.168698,88916.0,88913.0,0.0826]
[1740551248250,0.224929,88917.0,88913.0,0.0826]
[1740551248454,0.168702,88914.0,88913.0,0.0826]
[1740551249063,0.168704,88913.0,88912.0,0.002]
[1740551249284,0.168706,88912.0,88911.0,0.004]
[1740551249487,0.168713,88908.0,88907.0,0.0765]
[1740551251199,0.169713,88908.0,88907.0,0.0815]
[1740551252143,0.001,88908.0,88907.0,0.0815]
[1740551253130,0.001,88908.0,88907.0,0.0865]
[1740551253131,0.169713,88908.0,88907.0,0.0865]
[1740551253330,0.170713,88908.0,88907.0,0.0865]
[1740551257565,0.002,88908.0,88907.0,0.0865]
[1740551259467,0.170713,88908.0,88907.0,0.0865]
[1740551259868,0.002,88908.0,88907.0,0.0865]
[1740551260553,0.002,88908.0,88907.0,0.255215]
[1740551261240,0.002,88908.0,88907.0,0.1347]
[1740551262244,0.002,88908.0,88907.0,0.14877438]
[1740551262575,0.002,88908.0,88907.0,0.14962218]
[1740551266130,0.002,88908.0,88907.0,0.47472218]
[1740551269050,0.002,88908.0,88907.0,0.64343718]
[1740551269529,0.002,88908.0,88907.0,0.47472218]
[1740551273412,0.002,88908.0,88907.0,0.49436566]
[1740551274330,0.002,88908.0,88907.0,0.66308066]
[1740551275005,0.001,88908.0,88907.0,0.65808066]
[1740551275236,0.001,88908.0,88907.0,0.66160723]
[1740551275474,0.002,88908.0,88907.0,0.66660723]
[1740551275680,0.002,88908.0,88907.0,0.66160723]
[1740551275928,0.001,88908.0,88907.0,0.66160723]
[1740551276573,0.000424,88920.0,88919.0,0.168692]
[1740551276803,0.000424,88920.0,88919.0,0.251892]
[1740551276967,0.000424,88920.0,88919.0,0.26594864]
[1740551277931,0.000424,88920.0,88919.0,0.59104864]
[1740551279038,0.000424,88920.0,88919.0,0.59804864]
[1740551279418,0.000424,88920.0,88919.0,0.59104864]
[1740551279633,0.224896,88930.0,88920.0,0.224921]
[1740551279836,0.03032263,88928.0,88923.0,0.168683]
[1740551280035,0.03032263,88928.0,88924.0,0.01404925]
[1740551280236,0.03032263,88928.0,88919.0,0.4153]
[1740551280237,0.03032263,88928.0,88919.0,0.4223]
[1740551280419,0.03032263,88928.0,88924.0,0.168683]
[1740551280620,0.03032263,88928.0,88925.0,0.01404777]
[1740551280824,0.168672,88930.0,88921.0,0.224918]
[1740551281137,0.224892,88932.0,88922.0,0.01405221]
[1740551281341,0.224884,88935.0,88923.0,0.168685]
[1740551281560,0.224888,88933.0,88922.0,0.01405221]
[1740551281760,0.168672,88930.0,88924.0,0.01404925]
[1740551281963,0.168672,88930.0,88923.0,0.18273573]
[1740551282215,0.168672,88930.0,88925.0,0.01404777]
[1740551282416,0.168672,88930.0,88924.0,0.01404925]
[1740551282597,0.168672,88930.0,88926.0,0.0140463]
[1740551282861,0.168672,88930.0,88921.0,0.224918]
[1740551282862,0.168672,88930.0,88925.0,0.01404777]
[1740551283065,0.168672,88930.0,88926.0,0.0140463]
[1740551283268,0.16867,88931.0,88922.0,0.002]
[1740551283444,0.168681,88925.0,88923.0,0.01277339]
[1740551283675,0.224902,88928.0,88923.0,0.01277339]
[1740551283825,0.03152813,88933.0,88923.0,0.01277339]
[1740551284035,0.168683,88924.0,88923.0,0.01277339]
[1740551284389,0.224908,88925.0,88924.0,0.004]
[1740551284802,0.224908,88925.0,88924.0,0.01804925]
[1740551285012,0.224908,88925.0,88924.0,0.004]
[1740551285215,0.224908,88925.0,88924.0,0.01804925]
[1740551285431,0.224908,88925.0,88923.0,0.003]
[1740551285615,0.224908,88925.0,88924.0,0.01404925]
[1740551285827,0.169683,88924.0,88923.0,0.009]
[1740551287221,0.168687,88922.0,88921.0,0.0008478]
[1740551288420,0.168687,88922.0,88921.0,0.0028478]
[1740551288653,0.168687,88922.0,88921.0,0.0038478]
[1740551288829,0.168687,88922.0,88921.0,0.0008478]
[1740551289178,0.168687,88922.0,88921.0,0.0028478]
[1740551289615,0.168687,88922.0,88921.0,0.0048478]
[1740551290631,0.168687,88922.0,88921.0,0.0008478]
[1740551290844,0.168687,88922.0,88921.0,0.0028478]
[1740551291421,0.168687,88922.0,88921.0,0.0008478]
[1740551292523,0.26610506,88922.0,88921.0,0.0008478]
[1740551292731,0.26610506,88922.0,88907.0,0.0008478]
[1740551292732,0.168713,88908.0,88907.0,0.0008478]
[1740551292973,0.168713,88908.0,88907.0,0.00088964]
[1740551295770,0.168713,88908.0,88907.0,0.00488964]
[1740551296178,0.168713,88908.0,88907.0,0.08408964]
[1740551297274,0.168713,88908.0,88907.0,0.09816402]
[1740551297456,0.168713,88908.0,88907.0,0.08408964]
[1740551297663,0.168713,88908.0,88907.0,0.09816402]
[1740551297862,0.224922,88920.0,88907.0,0.09816402]
[1740551298063,0.168712,88909.0,88907.0,0.08408964]
[1740551298272,0.224922,88920.0,88908.0,0.0140729]
[1740551298516,0.46424085,88949.0,88908.0,0.0140729]
[1740551298722,0.168705,88913.0,88908.0,0.0140729]
[1740551298895,0.002,88920.0,88911.0,0.0821]
[1740551299096,0.002,88920.0,88907.0,0.00288964]
[1740551299097,0.170691,88920.0,88913.0,0.0821]
[1740551299326,0.002,88920.0,88915.0,0.0821]
[1740551299534,0.168696,88917.0,88915.0,0.0821]
[1740551299792,0.168696,88917.0,88916.0,0.01406108]
[1740551300356,0.168698,88916.0,88915.0,0.0821]
[1740551300731,0.168698,88916.0,88915.0,0.09616255]
[1740551301582,0.168698,88916.0,88915.0,0.09716255]
[1740551301997,0.168698,88916.0,88915.0,0.0831]
[1740551303599,0.168698,88916.0,88915.0,0.0841]
[1740551304670,0.168698,88916.0,88915.0,0.09688414]
[1740551310601,0.168698,88916.0,88915.0,0.01478414]
[1740551311648,0.168698,88916.0,88915.0,0.01378414]
[1740551311805,0.169698,88916.0,88915.0,0.01378414]
[1740551313062,0.17872137,88916.0,88915.0,0.01378414]
[1740551313291,0.17772137,88916.0,88915.0,0.01378414]
[1740551313475,0.17872137,88916.0,88915.0,0.01278414]
[1740551313625,0.01102337,88916.0,88909.0,0.3251]
[1740551313828,0.168709,88910.0,88909.0,0.3251]
[1740551314895,0.170709,88910.0,88909.0,0.3251]
[1740551315220,0.169709,88910.0,88909.0,0.3251]
[1740551316468,0.168713,88908.0,88907.0,0.00088964]
[1740551317871,0.168713,88908.0,88907.0,0.00488964]
[1740551318068,0.168713,88908.0,88907.0,0.00888964]
[1740551318475,0.168691,88920.0,88910.0,0.0814]
[1740551318719,0.0004239,88921.0,88913.0,0.168703]
[1740551318887,0.0004239,88921.0,88914.0,0.08217438]
[1740551319082,0.0004239,88921.0,88915.0,0.09338414]
[1740551319660,0.0004239,88921.0,88919.0,0.0771]
[1740551320003,0.0004239,88921.0,88920.0,0.01277742]
[1740551320238,0.0004239,88921.0,88920.0,0.16869]
[1740551320742,0.0004239,88921.0,88920.0,0.18146742]
[1740551321272,0.0004239,88921.0,88920.0,0.18646742]
[1740551321481,0.0004239,88921.0,88920.0,0.19146742]
[1740551321890,0.0004239,88921.0,88920.0,0.02277742]
[1740551322696,0.0004239,88921.0,88920.0,0.19146742]
[1740551324566,0.0004239,88921.0,88920.0,0.26966742]
[1740551325713,0.168674,88929.0,88923.0,0.168684]
[1740551325896,0.168674,88929.0,88924.0,0.01277205]
[1740551326091,0.0004239,88930.0,88925.0,0.168681]
[1740551326350,0.0004239,88930.0,88926.0,0.18144836]
[1740551326515,0.1690959,88930.0,88926.0,0.01276936]
[1740551326714,0.0004239,88930.0,88920.0,0.0782]
[1740551327092,0.0004239,88930.0,88925.0,0.168679]
[1740551327286,0.0004239,88930.0,88926.0,0.168679]
[1740551327522,0.0004239,88930.0,88926.0,0.01276936]
[1740551327693,0.0004239,88930.0,88927.0,0.250977]
[1740551327844,0.224885,88935.0,88927.0,0.250977]
[1740551328055,0.224886,88934.0,88928.0,0.01276667]
[1740551328260,0.26338438,88934.0,88928.0,0.01276667]
[1740551328462,0.168668,88933.0,88928.0,0.01276667]
[1740551328649,0.03849838,88934.0,88928.0,0.01276667]
[1740551328844,0.224849,88949.0,88928.0,0.01276667]
[1740551329092,0.224883,88935.0,88928.0,0.01276667]
[1740551329272,0.168666,88934.0,88928.0,0.01276667]
[1740551329488,0.20795824,88934.0,88928.0,0.01276667]
[1740551329844,0.168666,88933.0,88928.0,0.01276667]
[1740551330393,0.03929224,88934.0,88928.0,0.01276667]
[1740551330604,0.16866,88936.0,88928.0,0.18144167]
[1740551330966,0.168664,88935.0,88928.0,0.01276667]
[1740551331167,0.168653,88940.0,88930.0,0.16867]
[1740551331400,0.168653,88940.0,88928.0,0.01276667]
[1740551331401,0.03879897,88935.0,88928.0,0.01476667]
[1740551331671,0.168658,88937.0,88931.0,0.01276264]
[1740551331876,0.168659,88937.0,88928.0,0.168675]
[1740551332170,0.168657,88938.0,88930.0,0.16867]
[1740551332377,0.168657,88938.0,88931.0,0.168669]
[1740551332578,0.03907643,88938.0,88932.0,0.168667]
[1740551332735,0.20773343,88938.0,88931.0,0.18143164]
[1740551333073,0.168657,88938.0,88933.0,0.01275996]
[1740551333374,0.168656,88939.0,88934.0,0.01275861]
[1740551333737,0.0004239,88937.0,88932.0,0.168667]
[1740551333952,0.0004239,88937.0,88935.0,0.01275727]
[1740551334375,0.0004239,88937.0,88928.0,0.168675]
[1740551334376,0.168661,88936.0,88928.0,0.168675]
[1740551334575,0.1690819,88937.0,88927.0,0.307201]
[1740551334777,0.0004239,88937.0,88927.0,0.307201]
[1740551335095,0.0004239,88937.0,88928.0,0.01276667]
[1740551336045,0.1690829,88937.0,88930.0,0.168671]
[1740551336429,0.1690829,88937.0,88931.0,0.01276264]
[1740551336842,0.0004239,88937.0,88931.0,0.01276264]
[1740551336996,0.0004239,88937.0,88931.0,0.18143164]
[1740551337195,0.0004239,88937.0,88929.0,0.224898]
[1740551337401,0.0004239,88937.0,88932.0,0.1814283]
[1740551337618,0.0004239,88937.0,88932.0,0.168667]
[1740551337844,0.0004239,88937.0,88933.0,0.01275996]
[1740551338174,0.03788179,88950.0,88927.0,0.0823]
[1740551338350,0.03788179,88950.0,88934.0,0.01275861]
[1740551338560,0.168675,88928.0,88927.0,0.0823]
[1740551338800,0.3,88948.0,88927.0,0.0823]
[1740551338978,0.03788179,88950.0,88927.0,0.09506802]
[1740551339182,0.03788179,88950.0,88927.0,0.0823]
[1740551339406,0.168673,88929.0,88928.0,0.01276667]
[1740551340738,0.168673,88929.0,88928.0,0.01676667]
[1740551340947,0.168673,88929.0,88928.0,0.01476667]
[1740551341691,0.168673,88929.0,88928.0,0.01276667]
[1740551342117,0.168673,88929.0,88928.0,0.01576667]
[1740551342347,0.168673,88929.0,88928.0,0.01876667]
[1740551342564,0.168673,88929.0,88928.0,0.01276667]
[1740551342898,0.168673,88929.0,88928.0,0.01676667]
[1740551343111,0.168673,88929.0,88928.0,0.01476667]
[1740551343517,0.168673,88929.0,88928.0,0.01676667]
[1740551343717,0.168673,88929.0,88928.0,0.01276667]
[1740551344129,0.168673,88929.0,88928.0,0.01476667]
[1740551344928,0.168673,88929.0,88928.0,0.01676667]
[1740551345378,0.168673,88929.0,88928.0,0.01276667]
[1740551345582,0.168673,88929.0,88928.0,0.01376667]
[1740551345783,0.168673,88929.0,88928.0,0.01676667]
[1740551346226,0.168673,88929.0,88928.0,0.01976667]
[1740551346435,0.468673,88929.0,88928.0,0.003]
[1740551346682,0.468679,88926.0,88925.0,0.0008478]
[1740551349673,0.468679,88926.0,88925.0,0.0028478]
[1740551350682,0.468679,88926.0,88925.0,0.0048478]
[1740551351480,0.468679,88926.0,88925.0,0.0028478]
[1740551352094,0.468679,88926.0,88925.0,0.0008478]
[1740551352295,0.468679,88926.0,88925.0,0.0018478]
[1740551353185,0.468679,88926.0,88925.0,0.0038478]
[1740551353411,0.468679,88926.0,88925.0,0.0028478]
[1740551353890,0.468679,88926.0,88925.0,0.0008478]
[1740551354090,0.468679,88926.0,88925.0,0.0018478]
[1740551354687,0.468679,88926.0,88925.0,0.0028478]
[1740551355263,0.468679,88926.0,88925.0,0.0048478]
[1740551355892,0.468679,88926.0,88925.0,0.0038478]
[1740551356050,0.468679,88926.0,88925.0,0.0058478]
[1740551356736,0.3,88926.0,88925.0,0.0058478]
[1740551357138,0.468679,88926.0,88925.0,0.01989557]
[1740551357363,0.468679,88926.0,88925.0,0.0058478]
[1740551359803,0.3,88926.0,88925.0,0.0058478]
[1740551360017,0.468679,88926.0,88925.0,0.0058478]
[1740551362825,0.3,88926.0,88925.0,0.0058478]
[1740551363425,0.468679,88926.0,88925.0,0.0186185]
[1740551363760,0.468679,88926.0,88925.0,0.0058478]
[1740551363977,0.468679,88926.0,88925.0,0.0186185]
[1740551364235,0.468679,88926.0,88925.0,0.0058478]
[1740551368293,0.168679,88926.0,88925.0,0.0058478]
[1740551379183,0.0004239,88926.0,88925.0,0.0058478]
[1740551379840,0.1691029,88926.0,88925.0,0.0058478]
[1740551381046,0.0004239,88926.0,88925.0,0.1292478]
[1740551381666,0.0004239,88926.0,88925.0,0.14329557]
[1740551381871,0.0004239,88926.0,88925.0,0.31197657]
[1740551383867,0.3004239,88937.0,88930.0,0.0802]
[1740551384070,0.0004239,88937.0,88931.0,0.168669]
[1740551384276,0.0004239,88937.0,88936.0,0.29636]
[1740551384500,0.0004239,88937.0,88936.0,0.1277]
[1740551384792,0.0004239,88937.0,88936.0,0.14045593]
[1740551385555,0.0024239,88937.0,88936.0,0.14045593]
[1740551385754,0.0044239,88937.0,88936.0,0.30911593]
[1740551386054,0.0004239,88937.0,88936.0,0.14045593]
[1740551386383,0.0004239,88937.0,88936.0,0.14445593]
[1740551394753,0.1690819,88937.0,88936.0,0.14445593]
[1740551397022,0.0004239,88937.0,88936.0,0.14445593]
[1740551397188,0.1690819,88937.0,88936.0,0.14445593]
[1740551397652,0.0004239,88937.0,88936.0,0.14445593]
[1740551398249,0.1690819,88937.0,88936.0,0.14445593]
[1740551398869,0.0004239,88937.0,88936.0,0.14445593]
[1740551400281,0.1690819,88937.0,88936.0,0.09695593]
[1740551401583,0.1690819,88937.0,88936.0,0.01675593]
[1740551401816,0.4690819,88937.0,88936.0,0.01675593]
[1740551402700,0.4765422,88937.0,88936.0,0.01675593]
[1740551403559,0.4765422,88937.0,88936.0,0.01475593]
[1740551403710,0.4765422,88937.0,88936.0,0.01575593]
[1740551404111,0.4765422,88937.0,88936.0,0.01475593]
[1740551404538,0.4765422,88937.0,88936.0,0.01275593]
[1740551404862,0.4765422,88937.0,88936.0,0.01375593]
[1740551405442,0.4765422,88937.0,88936.0,0.01275593]
[1740551405855,0.4775422,88937.0,88936.0,0.01275593]
[1740551407175,0.4815422,88937.0,88936.0,0.01275593]
[1740551407744,0.4845422,88937.0,88936.0,0.01275593]
[1740551408133,0.008,88937.0,88936.0,0.01275593]
[1740551408341,0.176658,88937.0,88936.0,0.01275593]
[1740551408789,0.177658,88937.0,88936.0,0.01275593]
[1740551410416,0.18535588,88937.0,88936.0,0.01275593]
[1740551411006,0.177658,88937.0,88936.0,0.01275593]
[1740551411778,0.18535588,88937.0,88936.0,9.3e-07]
[1740551411984,0.177658,88937.0,88936.0,9.3e-07]
[1740551413631,0.168677,88927.0,88918.0,0.0492]
[1740551417425,0.169677,88927.0,88918.0,0.0492]
[1740551432868,0.469677,88927.0,88926.0,0.0856815]
[1740551439645,0.001,88927.0,88926.0,0.1309815]
[1740551440088,0.001,88927.0,88926.0,0.14439]
[1740551440292,0.000424,88929.0,88926.0,0.06369]
[1740551440426,0.000424,88929.0,88927.0,0.0825]
[1740551440634,0.168675,88928.0,88927.0,0.09590702]
[1740551442031,0.168675,88928.0,88927.0,0.10090702]
[1740551443151,0.168675,88928.0,88927.0,0.10590702]
[1740551443763,0.168675,88928.0,88927.0,0.09590702]
[1740551443949,0.169675,88928.0,88927.0,0.09590702]
[1740551445347,0.168675,88928.0,88927.0,0.09890702]
[1740551445552,0.168675,88928.0,88927.0,0.10190702]
[1740551445997,0.168675,88928.0,88927.0,0.09890702]
[1740551446348,0.168675,88928.0,88927.0,0.09990702]
[1740551446670,0.168675,88928.0,88927.0,0.09690702]
[1740551447251,0.168675,88928.0,88927.0,0.09990702]
[1740551447437,0.168675,88928.0,88927.0,0.09890702]
[1740551447796,0.168675,88928.0,88927.0,0.09590702]
[1740551448093,0.168675,88928.0,88927.0,0.09690702]
[1740551448278,0.168675,88928.0,88927.0,0.09590702]
[1740551448695,0.168675,88928.0,88927.0,0.09790702]
[1740551448851,0.168675,88928.0,88927.0,0.09890702]
[1740551449446,0.168675,88928.0,88927.0,0.09790702]
[1740551449644,0.168675,88928.0,88927.0,0.09890702]
[1740551452017,0.168675,88928.0,88927.0,0.09975502]
[1740551453005,0.000424,88929.0,88927.0,0.09975502]
[1740551453648,0.168675,88928.0,88927.0,0.09975502]
[1740551453980,0.168675,88928.0,88927.0,0.09675502]
[1740551454188,0.168675,88928.0,88927.0,0.09775502]
[1740551454427,0.000424,88929.0,88927.0,0.09775502]
[1740551454606,0.3,88934.0,88927.0,0.09675502]
[1740551454807,0.168674,88929.0,88927.0,0.085348]
[1740551455032,0.168675,88928.0,88927.0,0.085348]
[1740551455231,0.168675,88928.0,88927.0,0.086348]
[1740551455958,0.168675,88928.0,88927.0,0.085348]
[1740551456255,0.168675,88928.0,88927.0,0.086348]
[1740551456601,0.168675,88928.0,88927.0,0.084348]
[1740551457041,0.168675,88928.0,88927.0,0.085348]
[1740551457245,0.168675,88928.0,88927.0,0.084348]
[1740551457401,0.168675,88928.0,88927.0,0.086348]
[1740551463876,0.224897,88930.0,88927.0,0.086348]
[1740551463877,0.224893,88931.0,88927.0,0.086348]
[1740551464225,0.168675,88928.0,88927.0,0.086348]
[1740551465269,0.168675,88928.0,88927.0,0.085348]
[1740551465879,0.168675,88928.0,88927.0,0.083348]
[1740551466335,0.168675,88928.0,88927.0,0.084348]
[1740551466619,0.168675,88928.0,88927.0,0.083348]
[1740551467383,0.168675,88928.0,88927.0,0.085348]
[1740551467587,0.468675,88928.0,88927.0,0.003848]
[1740551468653,0.468675,88928.0,88927.0,0.002848]
[1740551468850,0.469675,88928.0,88927.0,0.002848]
[1740551469009,0.469675,88928.0,88927.0,0.000848]
[1740551484085,0.469675,88928.0,88927.0,0.084048]
[1740551484749,0.468675,88928.0,88927.0,0.084048]
[1740551485633,0.469675,88928.0,88927.0,0.000848]
[1740551486964,0.468675,88928.0,88927.0,0.000848]
[1740551488053,0.469675,88928.0,88927.0,0.000848]
[1740551488496,0.468675,88928.0,88927.0,0.000848]
[1740551488878,0.469675,88928.0,88927.0,0.000848]
[1740551489452,0.470675,88928.0,88927.0,0.000848]
[1740551495990,0.469675,88928.0,88927.0,0.000848]
[1740551496191,0.468675,88928.0,88927.0,0.000848]
[1740551497152,0.470675,88928.0,88927.0,0.000848]
[1740551503864,0.469675,88928.0,88927.0,0.000848]
[1740551504107,0.468675,88928.0,88927.0,0.000848]
[1740551504309,0.468675,88928.0,88927.0,0.001848]
[1740551505945,0.468675,88928.0,88927.0,0.080648]
[1740551506363,0.3,88929.0,88927.0,0.080648]
[1740551506806,0.168675,88928.0,88927.0,0.080648]
[1740551507638,0.168675,88928.0,88927.0,0.079648]
[1740551510079,0.468675,88928.0,88927.0,0.080648]
[1740551512589,0.225321,88930.0,88927.0,0.080648]
[1740551512766,0.168675,88928.0,88927.0,0.080648]
[1740551513338,0.169099,88928.0,88927.0,0.080648]
[1740551519980,0.169099,88928.0,88927.0,0.079648]
[1740551522127,0.169099,88928.0,88927.0,0.000848]
[1740551522936,0.170099,88928.0,88927.0,0.000848]
[1740551523283,0.171099,88928.0,88927.0,0.000848]
[1740551523483,0.170099,88928.0,88927.0,0.000848]
[1740551523686,0.169099,88928.0,88927.0,0.000848]
[1740551527075,0.469099,88928.0,88927.0,0.000848]
[1740551527872,0.47624392,88928.0,88927.0,0.000848]
[1740551528084,0.47724392,88928.0,88927.0,0.000848]
[1740551528483,0.470099,88928.0,88927.0,0.000848]
[1740551528905,0.19175727,88928.0,88927.0,0.000848]
[1740551529081,0.002,88928.0,88927.0,0.000848]
[1740551529289,0.168675,88928.0,88927.0,0.000848]
[1740551529793,0.169675,88928.0,88927.0,0.000848]
[1740551531917,0.1773216,88928.0,88927.0,0.000848]
[1740551532994,0.17739834,88928.0,88927.0,0.000848]
[1740551537600,0.469675,88928.0,88927.0,0.000848]
[1740551538302,0.469099,88928.0,88927.0,0.000848]
[1740551547363,0.469099,88928.0,88927.0,0.079448]
[1740551548651,0.469099,88928.0,88927.0,0.126148]
[1740551549280,0.469099,88928.0,88927.0,0.128148]
[1740551550097,0.000424,88928.0,88927.0,0.132148]
[1740551550296,0.000424,88928.0,88927.0,0.130148]
[1740551550493,0.000424,88928.0,88927.0,0.134148]
[1740551550859,0.000424,88928.0,88927.0,0.130148]
[1740551551060,0.169099,88928.0,88927.0,0.134148]
[1740551551256,0.169099,88928.0,88927.0,0.130148]
[1740551551594,0.169099,88928.0,88927.0,0.134148]
[1740551551798,0.169099,88928.0,88927.0,0.130148]
[1740551552321,0.169099,88928.0,88927.0,0.126148]
[1740551552518,0.169099,88928.0,88927.0,0.129148]
[1740551553544,0.169099,88928.0,88927.0,0.126148]
[1740551553871,0.469099,88928.0,88927.0,0.129148]
[1740551554226,0.469099,88928.0,88927.0,0.126148]
[1740551554407,0.469099,88928.0,88927.0,0.129148]
[1740551554606,0.469099,88928.0,88927.0,0.132148]
[1740551554870,0.469099,88928.0,88927.0,0.129148]
[1740551555005,0.3,88929.0,88927.0,0.132148]
[1740551556006,0.3,88929.0,88927.0,0.129148]
[1740551556209,0.168675,88928.0,88927.0,0.128148]
[1740551556512,0.168675,88928.0,88927.0,0.130148]
[1740551557315,0.168675,88928.0,88927.0,0.128148]
[1740551557666,0.168675,88928.0,88927.0,0.131148]
[1740551558412,0.168675,88928.0,88927.0,0.129148]
[1740551558636,0.168675,88928.0,88927.0,0.132148]
[1740551562904,0.000424,88931.0,88928.0,0.0774]
[1740551563226,0.168671,88930.0,88928.0,0.0774]
[1740551563353,0.168671,88930.0,88929.0,0.09229341]
[1740551564385,0.000424,88931.0,88929.0,0.09229341]
[1740551564524,0.000424,88931.0,88930.0,0.215971]
[1740551564738,0.000424,88931.0,88930.0,0.1247]
[1740551564954,0.000424,88931.0,88930.0,0.13959177]
[1740551565159,0.000424,88931.0,88930.0,0.32437776]
[1740551565370,0.000424,88935.0,88934.0,0.168664]
[1740551565586,0.000424,88935.0,88934.0,0.63757867]
[1740551565926,0.000424,88935.0,88934.0,0.65089005]
[1740551566621,0.000424,88935.0,88934.0,0.65789005]
[1740551566856,0.000424,88935.0,88934.0,0.65089005]
[1740551567170,0.000424,88935.0,88934.0,0.65789005]
[1740551568877,0.000424,88935.0,88934.0,1.19449005]
[1740551569440,0.000424,88935.0,88934.0,1.20149005]
[1740551569834,0.000424,88935.0,88934.0,1.21121005]
[1740551588150,0.168624,88955.0,88935.0,0.09394085]
[1740551588327,4.19e-05,88954.0,88947.0,0.01454085]
[1740551588525,4.19e-05,88954.0,88948.0,0.18317785]
[1740551588729,4.19e-05,88954.0,88948.0,0.19804007]
[1740551588982,4.19e-05,88954.0,88949.0,0.00157377]
[1740551589181,4.19e-05,88954.0,88951.0,0.168631]
[1740551589617,4.19e-05,88954.0,88952.0,0.01485566]
[1740551590142,4.19e-05,88954.0,88948.0,0.22817785]
[1740551590346,4.19e-05,88954.0,88953.0,0.01485402]
[1740551590586,4.19e-05,88954.0,88949.0,0.32667375]
[1740551590796,4.19e-05,88954.0,88953.0,0.27882287]
[1740551590996,4.19e-05,88954.0,88953.0,0.30896885]
[1740551591199,4.19e-05,88954.0,88953.0,0.64892287]
[1740551591398,4.19e-05,88954.0,88953.0,1.18552287]
[1740551591593,4.19e-05,88954.0,88953.0,1.21484412]
[1740551592085,4.19e-05,88954.0,88953.0,1.42859165]
[1740551592743,0.0004239,88961.0,88960.0,0.41175585]
[1740551593075,0.0004239,88961.0,88960.0,0.42659838]
[1740551594066,0.0004239,88961.0,88960.0,0.43359838]
[1740551594561,0.0004239,88961.0,88960.0,0.44059838]
[1740551595513,0.0004239,88961.0,88960.0,1.30229838]
[1740551596601,0.0004239,88961.0,88960.0,1.30929838]
[1740551596978,0.0004239,88961.0,88960.0,1.30229838]
[1740551597148,0.0004239,88961.0,88960.0,1.28829838]
[1740551597350,0.0004239,88961.0,88960.0,1.30229838]
[1740551597993,0.0004239,88961.0,88960.0,1.30929838]
[1740551600668,0.0004239,88961.0,88960.0,1.42304591]
[1740551600830,9e-07,88961.0,88960.0,1.42304591]
[1740551601030,0.0004241,88991.0,88989.0,0.076]
[1740551601234,0.00084344,88991.0,88990.0,0.51949187]
[1740551601465,0.00084344,88991.0,88990.0,0.60871218]
[1740551602831,0.00084344,88991.0,88990.0,0.61571218]
[1740551603817,0.00084344,88991.0,88990.0,0.62271218]
[1740551606168,0.00084344,88991.0,88990.0,0.71297354]
[1740551606375,0.00084344,88991.0,88990.0,1.24957354]
[1740551606571,0.00084344,88991.0,88990.0,1.15931218]
[1740551609024,0.00084344,88991.0,88990.0,1.14959218]
[1740551609238,0.00084344,88991.0,88990.0,1.15931218]
[1740551612111,0.00084344,88991.0,88990.0,1.16283474]
[1740551613524,0.00084344,88991.0,88990.0,1.15931218]
[1740551613917,0.00084344,88991.0,88990.0,1.14959218]
[1740551614134,0.00084344,88991.0,88990.0,1.15931218]
[1740551616542,0.00084344,88991.0,88990.0,1.20621218]
[1740551616747,0.00084344,88991.0,88990.0,1.41995971]
[1740551617149,0.00084344,88991.0,88990.0,1.52348227]
[1740551617728,0.168498,89022.0,89010.0,0.0787]
[1740551617929,0.00012582,89022.0,89012.0,0.01454085]
[1740551618195,0.00012582,89022.0,89014.0,0.01454085]
[1740551618394,0.168502,89020.0,89014.0,0.01454085]
[1740551618579,0.168503,89019.0,89015.0,0.01475235]
[1740551619259,0.02961946,89022.0,89015.0,0.01475235]
[1740551619459,0.168509,89016.0,89015.0,0.0292932]
[1740551619843,0.168505,89018.0,89015.0,0.0292932]
[1740551620047,0.168507,89017.0,89015.0,0.0292932]
[1740551620471,0.224666,89021.0,89015.0,0.0292932]
[1740551620906,0.02961946,89022.0,89015.0,0.1978032]
[1740551621122,0.168499,89021.0,89015.0,0.0292932]
[1740551621304,0.3,89030.0,89015.0,0.0302932]
[1740551621646,0.3,89030.0,89015.0,0.19937575]
[1740551621647,0.168497,89022.0,89015.0,0.19937575]
[1740551621867,0.168495,89024.0,89016.0,0.168508]
[1740551622069,0.168501,89020.0,89015.0,0.0302932]
[1740551622267,0.224655,89026.0,89017.0,0.01474907]
[1740551622447,0.1685,89021.0,89018.0,0.00972]
[1740551622798,0.224655,89026.0,89019.0,0.0147458]
[1740551623028,0.168501,89020.0,89019.0,0.0147458]